bitfinex-derivatives/quotes_BNBF0:USTF0_20241225
["timestamp","ask_amount","ask_price","bid_price","bid_amount"]
[1735097116631,0.26178456,703.11,701.25,1.04078362]
[1735097116819,0.26178814,703.1,701.25,1.04078362]
[1735097117022,0.26178814,703.09,701.25,1.04078362]
[1735097117315,0.26178814,703.08,701.23,1.04078362]
[1735097117519,0.26178814,703.07,701.23,1.04078362]
[1735097117719,0.26178814,703.06,701.23,1.04078362]
[1735097117919,0.26178814,703.05,701.23,1.04078362]
[1735097118114,0.26178814,703.05,700.39,2.12493323]
[1735097118115,0.26178814,703.04,701.22,1.04078362]
[1735097118319,0.26178814,703.03,701.22,1.04078362]
[1735097118519,0.26178814,703.02,701.22,1.04078362]
[1735097118821,0.26178814,703.01,701.22,1.04078362]
[1735097119017,0.26178814,703.0,701.22,1.04078362]
[1735097119215,0.28441006,703.21,701.2,1.04078362]
[1735097119615,0.26178386,703.2,701.2,1.04078362]
[1735097120213,0.26178386,703.2,700.36,2.12493323]
[1735097120214,0.26178386,703.2,701.17,1.04078362]
[1735097121021,0.26178386,703.19,701.17,1.04078362]
[1735097121315,0.26178386,703.18,701.16,1.04078362]
[1735097121521,0.26178386,703.17,701.16,1.04078362]
[1735097121820,0.26178386,703.16,701.16,1.04078362]
[1735097122018,0.26178386,703.15,701.16,1.04078362]
[1735097122219,0.26178386,703.14,701.16,1.04078362]
[1735097122419,0.26178386,703.13,701.16,1.04078362]
[1735097122620,0.26178386,703.12,701.16,1.04078362]
[1735097122823,0.26178386,703.11,701.41,1.04078362]
[1735097123022,0.26178386,703.1,701.41,1.04078362]
[1735097123320,0.26176494,703.09,701.41,1.04078362]
[1735097123523,0.26176494,703.08,701.41,1.04078362]
[1735097123822,0.26176494,703.07,701.41,1.04078362]
[1735097124015,0.26176494,703.06,701.41,1.04078362]
[1735097124216,0.26176494,703.05,701.41,1.04078362]
[1735097124420,0.26176494,703.04,701.36,1.04078362]
[1735097124619,0.26176494,703.03,701.36,1.04078362]
[1735097124820,0.26176494,703.02,701.36,1.04078362]
[1735097125017,0.26176494,703.01,701.36,1.04078362]
[1735097125220,0.28441006,703.21,701.36,1.04078362]
[1735097125221,0.26176897,703.0,701.36,1.04078362]
[1735097125420,0.26176897,702.99,701.36,1.04078362]
[1735097125623,0.26176897,702.98,701.36,1.04078362]
[1735097125818,0.26176897,702.97,701.36,1.04078362]
[1735097126017,0.26176897,702.96,701.36,1.04078362]
[1735097126220,0.28441006,703.21,701.36,1.04078362]
[1735097126422,0.26170853,703.2,701.5,1.04078362]
[1735097127222,0.26169402,703.19,701.5,1.04078362]
[1735097127425,0.26169402,703.18,701.5,1.04078362]
[1735097127627,0.26169402,703.17,701.57,1.04078362]
[1735097127827,0.26169517,703.16,701.57,1.04078362]
[1735097128023,0.26169517,703.15,701.58,0.28507084]
[1735097128222,0.26169517,703.14,701.58,0.28507084]
[1735097128428,0.26169517,703.13,701.58,0.28507084]
[1735097128729,0.26169517,703.12,701.6,1.04078362]
[1735097128925,0.26169517,703.11,701.61,0.28505865]
[1735097129128,0.26169517,703.1,701.61,0.28505865]
[1735097129327,0.26169517,703.09,701.61,0.28505865]
[1735097129527,0.26169517,703.08,701.61,0.28505865]
[1735097129730,0.26169517,703.07,701.61,0.28505865]
[1735097129928,0.26169517,703.06,701.61,0.28505865]
[1735097130122,0.26169517,703.05,701.61,0.28505865]
[1735097130322,0.26169517,703.04,701.61,0.28505865]
[1735097130525,0.26172485,703.03,701.61,0.28505865]
[1735097130831,0.26172485,703.02,701.61,0.28505865]
[1735097131030,0.28441006,703.21,701.61,0.28505865]
[1735097131224,0.26171517,703.2,701.61,0.28505865]
[1735097131428,0.54612483,703.19,701.61,0.28505865]
[1735097131626,0.26170668,703.18,701.61,0.28505865]
[1735097133330,0.54612887,703.18,701.61,0.28505865]
[1735097133527,0.26170679,703.17,701.61,0.28505865]
[1735097134634,0.28442219,703.18,701.61,0.28505865]
[1735097141545,0.26170606,703.17,701.61,0.28505865]
[1735097144046,0.26170606,703.17,701.67,1.04078362]
[1735097144447,0.26170888,703.16,701.68,0.28503021]
[1735097144644,0.26170888,703.15,701.68,0.28503021]
[1735097144840,0.26170888,703.14,701.68,1.32581383]
[1735097145041,0.26170888,703.13,701.68,1.32581383]
[1735097145241,0.26170888,703.12,701.68,1.32581383]
[1735097145442,0.26170888,703.11,701.68,1.32581383]
[1735097145646,0.28442219,703.18,701.68,1.32581383]
[1735097145647,0.26170888,703.1,701.68,1.32581383]
[1735097145949,0.26170888,703.09,701.68,1.32581383]
[1735097146149,0.26170888,703.08,701.68,1.32581383]
[1735097146344,0.26170888,703.07,701.68,1.32581383]
[1735097146649,0.26170888,703.06,701.68,1.32581383]
[1735097146849,0.26170888,703.05,701.68,1.32581383]
[1735097147042,0.28442219,703.18,701.73,1.04078362]
[1735097147246,0.26170667,703.17,701.74,0.28500584]
[1735097148046,0.26170667,703.17,701.74,1.32578946]
[1735097148845,0.26170667,703.17,701.75,1.04078362]
[1735097149451,0.26170667,703.17,701.75,1.3257854]
[1735097150047,0.26170812,703.16,701.75,1.3257854]
[1735097150251,0.26170812,703.15,701.75,1.3257854]
[1735097150449,0.26170812,703.14,701.75,1.3257854]
[1735097150650,0.26170812,703.13,701.86,1.04078362]
[1735097150845,0.26170812,703.12,701.86,1.04078362]
[1735097151046,0.26170812,703.11,701.86,1.04078362]
[1735097151346,0.26170812,703.1,701.86,1.04078362]
[1735097151554,0.26170812,703.09,701.86,1.04078362]
[1735097151751,0.28442219,703.18,701.76,1.04078362]
[1735097151952,0.26170731,703.17,701.76,1.04078362]
[1735097152351,0.28442219,703.18,701.76,1.04078362]
[1735097152551,0.26170083,703.17,701.75,0.28500178]
[1735097152751,0.26170705,703.16,701.75,0.28500178]
[1735097152952,0.28442219,703.18,701.75,0.28500178]
[1735097153154,0.26170239,703.17,701.75,0.28500178]
[1735097154048,0.28442219,703.18,701.75,0.28500178]
[1735097154248,0.26170057,703.17,701.75,0.28500178]
[1735097155647,0.26170912,703.16,701.75,0.28500178]
[1735097155958,0.26170912,703.15,701.75,0.28500178]
[1735097156150,0.28442219,703.18,701.75,0.28500178]
[1735097156348,0.26170876,703.17,701.75,0.28500178]
[1735097157255,0.28442219,703.18,701.75,0.28500178]
[1735097158053,0.26170111,703.17,701.75,0.28500178]
[1735097158256,0.26170111,703.17,701.75,1.3257854]
[1735097158555,0.28442219,703.18,701.75,1.3257854]
[1735097159253,0.26170044,703.17,701.78,1.04078362]
[1735097159450,0.28442219,703.18,701.78,1.04078362]
[1735097160156,0.26170182,703.17,701.79,0.28498553]
[1735097160356,0.26170182,703.17,701.8,1.04078362]
[1735097160960,0.26170286,703.16,701.85,1.04078362]
[1735097161158,0.28442219,703.18,701.85,1.04078362]
[1735097161556,0.26170274,703.17,701.85,1.04078362]
[1735097162260,0.26170274,703.17,701.79,0.28498553]
[1735097162261,0.26170274,703.17,701.79,1.32576915]
[1735097163058,0.28442219,703.18,701.79,1.32576915]
[1735097163251,0.26169154,703.17,701.9,1.04078362]
[1735097163455,0.28442219,703.18,701.9,1.04078362]
[1735097164159,0.28442219,703.18,701.79,0.28498553]
[1735097164160,0.28442219,703.18,701.85,1.04078362]
[1735097165253,0.28442219,703.18,701.86,1.04078362]
[1735097166357,0.28442219,703.18,701.8,0.82663132]
[1735097166358,0.28442219,703.18,701.89,1.04078362]
[1735097167560,0.28442219,703.18,701.9,0.28494087]
[1735097169659,0.28442219,703.18,701.99,1.04078362]
[1735097169855,1.05538195,703.98,701.99,1.04078362]
[1735097170061,0.28410705,703.96,701.99,1.04078362]
[1735097170366,0.26158509,703.95,701.99,1.04078362]
[1735097170756,0.26158509,703.95,702.1,1.04078362]
[1735097171363,0.26158471,703.94,702.1,1.04078362]
[1735097171564,0.26158471,703.93,702.1,1.04078362]
[1735097171764,0.26158471,703.92,702.1,1.04078362]
[1735097171965,0.26158471,703.91,702.1,1.04078362]
[1735097172161,0.26158471,703.91,701.91,0.82551928]
[1735097172162,0.2615865,703.9,702.03,1.04078362]
[1735097172464,0.2615865,703.89,702.03,1.04078362]
[1735097172666,0.2615865,703.88,702.03,1.04078362]
[1735097172859,0.2615865,703.87,702.03,1.04078362]
[1735097173165,0.2615865,703.86,702.08,1.04078362]
[1735097173359,0.2615865,703.85,702.09,0.28486376]
[1735097173561,0.54574198,703.84,702.09,0.28486376]
[1735097173764,0.2615865,703.83,702.09,0.28486376]
[1735097174161,0.28415548,703.84,702.09,0.28486376]
[1735097174469,0.26156563,703.83,702.1,1.04078362]
[1735097175063,0.26156563,703.83,702.09,0.28486376]
[1735097175465,0.28415548,703.84,702.09,0.28486376]
[1735097175466,0.26155146,703.82,702.09,0.28486376]
[1735097175669,0.26155146,703.81,702.09,0.28486376]
[1735097175869,0.26155146,703.8,702.09,0.28486376]
[1735097176065,0.26155056,703.83,702.09,0.28486376]
[1735097176275,0.26155056,703.82,702.09,0.28486376]
[1735097176472,0.26155056,703.81,702.09,0.28486376]
[1735097176671,0.26155056,703.8,702.09,0.28486376]
[1735097176871,0.26155056,703.83,702.09,0.28486376]
[1735097177070,0.26155056,703.82,702.09,0.28486376]
[1735097177271,0.26155056,703.83,702.09,0.28486376]
[1735097177472,0.26155056,703.82,702.09,0.28486376]
[1735097177770,0.26155056,703.81,702.09,0.28486376]
[1735097178068,0.26155056,703.8,702.09,0.28486376]
[1735097178273,0.26155056,703.79,702.09,0.28486376]
[1735097178469,0.26155056,703.78,702.09,0.28486376]
[1735097178774,0.26155056,703.77,702.09,0.28486376]
[1735097178972,0.26155056,703.76,702.09,0.28486376]
[1735097179272,0.26155056,703.75,702.09,0.28486376]
[1735097179472,0.28415548,703.84,702.09,0.28486376]
[1735097179875,0.26151496,703.83,702.09,0.28486376]
[1735097180268,0.28415548,703.84,702.09,0.28486376]
[1735097180471,0.26151618,703.83,702.09,0.28486376]
[1735097184969,0.28415548,703.84,702.09,0.28486376]
[1735097185174,0.26149151,703.83,702.09,0.28486376]
[1735097186079,0.26149151,703.83,702.2,1.04462752]
[1735097186973,0.26149151,703.83,702.23,1.04462752]
[1735097187773,0.26148672,703.82,702.23,1.04462752]
[1735097187978,0.26148672,703.81,702.24,1.04462752]
[1735097188179,0.26148672,703.8,702.24,1.04462752]
[1735097188376,0.26148672,703.79,702.24,1.04462752]
[1735097188573,0.26149184,703.78,702.24,1.04462752]
[1735097188776,0.26149184,703.77,702.24,1.04462752]
[1735097188976,0.28415548,703.84,702.26,1.04462752]
[1735097188977,0.26149184,703.76,702.26,1.04462752]
[1735097189173,0.26149184,703.75,702.26,1.04462752]
[1735097189377,0.26149184,703.74,702.26,1.04462752]
[1735097189574,0.26149184,703.73,702.26,1.04462752]
[1735097189774,0.28415548,703.84,702.27,1.04462752]
[1735097189775,0.26149184,703.72,702.27,1.04462752]
[1735097189975,0.26149184,703.71,702.27,1.04462752]
[1735097190281,0.26149184,703.7,702.27,1.04462752]
[1735097190481,0.28415548,703.84,702.27,1.04462752]
[1735097190482,0.26149184,703.69,702.27,1.04462752]
[1735097190675,0.26149184,703.68,702.27,1.04462752]
[1735097190879,0.28415548,703.84,702.28,1.04462752]
[1735097191579,0.26142963,703.83,702.28,1.04462752]
[1735097191781,0.28415548,703.84,702.23,1.04462752]
[1735097192580,0.28415548,703.84,702.41,1.04462752]
[1735097193581,0.28415548,703.84,702.45,1.04462752]
[1735097194675,0.28415548,703.84,702.18,1.04078362]
[1735097194676,0.28415548,703.84,702.46,1.04462752]
[1735097196485,0.28415548,703.84,702.44,1.04462752]
[1735097197478,0.28415548,703.84,702.45,1.04462752]
[1735097198781,0.28415548,703.84,702.44,1.04462752]
[1735097199687,0.28415548,703.84,702.49,1.04462752]
[1735097200591,0.28415548,703.84,702.48,1.04462752]
[1735097201789,0.28415548,703.84,702.5,1.04462752]
[1735097202993,0.28415548,703.84,702.56,1.04462752]
[1735097204191,0.28415548,703.84,702.59,1.04462752]
[1735097204988,0.28415548,703.84,702.62,1.04462752]
[1735097205994,0.28415548,703.84,702.64,1.04462752]
[1735097206895,0.28415548,703.84,702.53,1.04462752]
[1735097207595,0.28415548,703.84,702.1,1.85616888]
[1735097207596,0.28415548,703.84,702.45,1.04462752]
[1735097208299,0.26143507,703.83,702.45,1.04462752]
[1735097208795,0.26143507,703.83,702.15,1.04078362]
[1735097208796,0.26143507,703.83,702.46,1.04462752]
[1735097209993,0.28415548,703.84,702.1,0.81538526]
[1735097209994,0.26144986,703.82,702.49,1.04462752]
[1735097210193,0.26144986,703.81,702.49,1.04462752]
[1735097210391,0.26144986,703.8,702.49,1.04462752]
[1735097210596,0.26144986,703.79,702.49,1.04462752]
[1735097210796,0.26144986,703.78,702.49,1.04462752]
[1735097211095,0.26144986,703.77,702.55,1.04462752]
[1735097211396,0.26144986,703.76,702.55,1.04462752]
[1735097211590,0.26144986,703.75,702.55,1.04462752]
[1735097211789,0.26144986,703.74,702.55,1.04462752]
[1735097211990,0.28415548,703.84,702.55,1.04462752]
[1735097212190,0.26144127,703.83,702.6,1.04462752]
[1735097212590,0.28415548,703.84,702.6,1.04462752]
[1735097213093,0.28415548,703.84,702.1,0.81538526]
[1735097213094,0.28415548,703.84,702.64,1.04462752]
[1735097214296,0.28415548,703.84,702.61,0.28465293]
[1735097214297,0.28415548,703.84,702.69,1.04462752]
[1735097215499,0.28415548,703.84,702.72,1.04462752]
[1735097217900,0.28415548,703.84,702.73,1.04462752]
[1735097218501,0.28415548,703.84,702.79,1.04462752]
[1735097218896,0.26140463,703.83,702.79,1.04462752]
[1735097219401,0.26140463,703.83,702.65,0.28463673]
[1735097219402,0.26140463,703.83,702.77,1.04462752]
[1735097219996,0.28415548,703.84,702.77,1.04462752]
[1735097220800,0.28415548,703.84,702.78,1.04462752]
[1735097221803,0.28415548,703.84,702.65,0.28463673]
[1735097221804,0.28415548,703.84,702.83,1.04462752]
[1735097223009,0.28415548,703.84,702.88,1.04462752]
[1735097223908,0.28415548,703.84,702.9,1.04462752]
[1735097224810,0.28415548,703.84,702.89,1.04462752]
[1735097225612,0.28415548,703.84,702.93,1.04462752]
[1735097226510,0.28415548,703.84,702.65,0.28463673]
[1735097226511,0.28415548,703.84,702.95,1.04462752]
[1735097227713,0.28415548,703.84,702.94,1.04462752]
[1735097228713,0.28415548,703.84,702.66,0.82038172]
[1735097228714,0.28415548,703.84,702.96,1.04462752]
[1735097229612,0.28415548,703.84,702.95,1.04462752]
[1735097230213,0.28415548,703.84,702.91,1.04462752]
[1735097232716,0.28415548,703.84,702.97,1.04462752]
[1735097237222,0.26137097,703.83,702.97,1.04462752]
[1735097237615,0.28415548,703.84,702.97,1.04462752]
[1735097238915,0.28415548,703.84,702.76,1.04078362]
[1735097238916,0.28415548,703.84,702.99,1.04462752]
[1735097239120,1.05538195,704.41,702.99,1.04462752]
[1735097239424,0.54529863,704.4,702.99,1.04462752]
[1735097239625,0.54530142,704.39,702.99,1.04462752]
[1735097239820,0.26136781,704.38,702.99,1.04462752]
[1735097240026,0.26136781,704.38,702.8,1.04078362]
[1735097240027,0.28394167,704.37,703.03,1.04462752]
[1735097240325,0.26136781,704.36,703.03,1.04462752]
[1735097240522,0.28394974,704.35,703.03,1.04462752]
[1735097240722,0.26136781,704.34,703.03,1.04462752]
[1735097241025,0.2839578,704.33,703.03,1.04462752]
[1735097241326,0.26136781,704.32,702.87,1.04462752]
[1735097241522,0.28396586,704.31,702.87,1.04462752]
[1735097241825,0.26136781,704.3,702.87,1.04462752]
[1735097242022,0.28397393,704.29,702.87,1.04462752]
[1735097242222,0.28397393,704.29,702.83,1.04462752]
[1735097242223,0.26136781,704.28,702.83,1.04462752]
[1735097242623,0.28398199,704.27,702.83,1.04462752]
[1735097242827,0.26136781,704.26,702.83,1.04462752]
[1735097243019,0.28399006,704.25,702.83,1.04462752]
[1735097243223,0.28399006,704.25,702.69,0.28462052]
[1735097243224,0.26136781,704.24,702.82,1.04462752]
[1735097243426,0.28399812,704.23,702.82,1.04462752]
[1735097243626,0.26136781,704.22,702.82,1.04462752]
[1735097244126,0.54536996,704.22,702.82,1.04462752]
[1735097244426,0.26136781,704.21,702.84,1.04462752]
[1735097245229,0.26135437,704.2,702.88,1.04462752]
[1735097245427,0.26135437,704.19,702.88,1.04462752]
[1735097245627,0.26135437,704.18,702.88,1.04462752]
[1735097245824,0.28400215,704.22,702.88,1.04462752]
[1735097246026,0.26135854,704.21,702.88,1.04462752]
[1735097247129,0.26135854,704.21,702.9,1.04462752]
[1735097248130,0.28400215,704.22,702.92,1.04462752]
[1735097248131,0.2613582,704.2,702.92,1.04462752]
[1735097248329,0.28400215,704.22,702.92,1.04462752]
[1735097248330,0.2613582,704.19,702.92,1.04462752]
[1735097248628,0.2613582,704.18,702.92,1.04462752]
[1735097248832,0.2613582,704.17,702.92,1.04462752]
[1735097249026,0.2613582,704.17,702.69,0.28462052]
[1735097249027,0.2613582,704.16,702.91,1.04462752]
[1735097249224,0.28400215,704.22,702.91,1.04462752]
[1735097249427,0.26136819,704.21,702.91,1.04462752]
[1735097250527,0.26136819,704.21,702.93,1.04462752]
[1735097250831,0.26135543,704.2,702.93,1.04462752]
[1735097251029,0.26135543,704.19,702.93,1.04462752]
[1735097251234,0.26135543,704.18,702.93,1.04462752]
[1735097251427,0.26135543,704.17,702.93,1.04462752]
[1735097251632,0.28400215,704.22,702.69,0.28462052]
[1735097251633,0.26135543,704.16,702.99,1.04462752]
[1735097251828,0.26135543,704.15,702.99,1.04462752]
[1735097252031,0.26135543,704.14,702.99,1.04462752]
[1735097252326,0.26135543,704.13,702.99,1.04462752]
[1735097252531,0.26135543,704.12,702.99,1.04462752]
[1735097252731,0.26135543,704.11,702.99,1.04462752]
[1735097252931,0.26135543,704.11,702.72,1.04078362]
[1735097252932,0.26135543,704.1,703.07,1.04462752]
[1735097253135,0.26135543,704.09,703.07,1.04462752]
[1735097253332,0.26135543,704.08,703.07,1.04462752]
[1735097253634,0.26135219,704.07,703.07,1.04462752]
[1735097253833,0.26135219,704.06,703.07,1.04462752]
[1735097254033,0.26135219,704.05,703.1,1.04462752]
[1735097254234,0.26135219,704.04,703.1,1.04462752]
[1735097254435,0.28400215,704.22,703.1,1.04462752]
[1735097254636,0.26132238,704.21,703.1,1.04462752]
[1735097255134,0.26132238,704.21,702.7,0.82094107]
[1735097255135,0.26132238,704.21,703.22,1.04462752]
[1735097255932,0.26132238,704.21,703.18,1.04462752]
[1735097256636,0.26132238,704.21,703.13,1.04462752]
[1735097257735,0.26132238,704.21,703.15,1.04462752]
[1735097259036,0.26132238,704.21,703.14,1.04462752]
[1735097259229,0.26131785,704.2,703.14,1.04462752]
[1735097259430,0.26131785,704.19,703.14,1.04462752]
[1735097259628,0.26131785,704.18,703.14,1.04462752]
[1735097259835,0.26131785,704.17,703.15,1.04462752]
[1735097260029,0.26131785,704.16,703.15,1.04462752]
[1735097260234,0.26131785,704.15,703.15,1.04462752]
[1735097260536,0.26131785,704.14,703.15,1.04462752]
[1735097260736,0.26131785,704.13,703.15,1.04462752]
[1735097261033,0.28400215,704.22,703.15,1.04462752]
[1735097261237,0.26131934,704.21,703.15,1.04462752]
[1735097262637,0.26131934,704.21,703.16,1.04462752]
[1735097262839,0.26131901,704.2,703.16,1.04462752]
[1735097263037,0.26131901,704.19,703.16,1.04462752]
[1735097263231,0.26131901,704.18,703.16,1.04462752]
[1735097263433,0.26131901,704.17,703.16,1.04462752]
[1735097263638,0.26131901,704.16,703.16,1.04462752]
[1735097263830,0.26131901,704.15,703.16,1.04462752]
[1735097264032,0.28400215,704.22,703.16,1.04462752]
[1735097264837,0.28400215,704.22,703.12,1.04462752]
[1735097267244,0.28400215,704.22,703.15,1.04462752]
[1735097268139,0.28400215,704.22,703.16,1.04462752]
[1735097270241,0.26132754,704.21,703.02,1.04462752]
[1735097270941,0.261334,704.2,703.02,1.04462752]
[1735097271147,0.261334,704.19,703.02,1.04462752]
[1735097271340,0.261334,704.18,703.02,1.04462752]
[1735097271544,0.28400215,704.22,703.02,1.04462752]
[1735097271741,0.26133202,704.21,703.02,1.04462752]
[1735097271947,0.26133202,704.21,703.03,1.04462752]
[1735097273247,0.26133202,704.21,702.7,0.82058837]
[1735097273248,0.26133202,704.21,703.04,1.04462752]
[1735097273647,0.2613305,704.2,703.04,1.04462752]
[1735097273842,0.2613305,704.19,703.04,1.04462752]
[1735097274044,0.2613305,704.18,703.04,1.04462752]
[1735097274244,0.28400215,704.22,703.04,1.04462752]
[1735097274847,0.28400215,704.22,703.05,1.04462752]
[1735097276052,0.28400215,704.22,703.01,1.04462752]
[1735097277050,0.28400215,704.22,703.02,1.04462752]
[1735097280148,0.28400215,704.22,703.01,1.04462752]
[1735097281046,0.26133677,704.21,703.01,1.04462752]
[1735097281252,0.26133741,704.2,703.01,1.04462752]
[1735097281454,0.26133741,704.19,703.01,1.04462752]
[1735097281653,0.26133741,704.18,703.0,1.04462752]
[1735097281854,0.26133741,704.17,703.0,1.04462752]
[1735097282059,0.26133741,704.16,703.0,1.04462752]
[1735097282354,0.26133741,704.15,703.0,1.04462752]
[1735097282554,0.26133741,704.14,703.0,1.04462752]
[1735097282754,0.26133741,704.13,703.2,1.04462752]
[1735097282955,0.26133741,704.12,703.2,1.04462752]
[1735097283152,0.26133741,704.11,703.2,1.04462752]
[1735097283351,0.26133741,704.1,703.2,1.04462752]
[1735097283654,0.26133741,704.09,703.2,1.04462752]
[1735097283852,0.26133741,704.21,703.19,1.04462752]
[1735097284155,0.28400215,704.22,703.19,1.04462752]
[1735097284156,0.26133741,704.2,703.19,1.04462752]
[1735097284355,0.26133741,704.19,703.19,1.04462752]
[1735097284554,0.26133741,704.18,703.19,1.04462752]
[1735097284759,0.26133741,704.17,703.19,1.04462752]
[1735097284951,0.26133741,704.16,703.19,1.04462752]
[1735097285156,0.26133741,704.15,703.19,1.04462752]
[1735097285356,0.26133741,704.14,703.19,1.04462752]
[1735097285556,0.26133741,704.13,703.19,1.04462752]
[1735097285757,0.26133741,704.12,703.21,1.04462752]
[1735097285950,0.26133741,704.11,703.21,1.04462752]
[1735097286157,0.26133741,704.1,703.21,1.04462752]
[1735097286458,0.26133741,704.09,703.21,1.04462752]
[1735097286758,0.26133769,704.08,703.21,1.04462752]
[1735097286957,0.26133769,704.07,703.21,1.04462752]
[1735097287155,0.26133769,704.06,703.21,1.04462752]
[1735097287350,0.26133769,704.05,703.21,1.04462752]
[1735097287555,0.26133769,704.04,703.21,1.04462752]
[1735097287756,0.26133769,704.03,703.21,1.04462752]
[1735097287957,0.26133769,704.02,703.21,1.04462752]
[1735097288153,0.26133769,704.01,703.21,1.04462752]
[1735097288353,0.26133769,704.0,703.21,1.04462752]
[1735097288556,0.26133769,703.99,703.21,1.04462752]
[1735097288763,0.28400215,704.22,703.23,1.04462752]
[1735097288956,0.26133289,704.21,703.23,1.04462752]
[1735097289562,0.28400215,704.22,703.23,1.04462752]
[1735097289563,0.26133102,704.2,703.23,1.04462752]
[1735097289761,0.26133102,704.19,703.23,1.04462752]
[1735097290060,0.28400215,704.22,702.73,0.28460432]
[1735097290061,0.26133102,704.18,703.08,1.04462752]
[1735097290262,0.26133102,704.17,703.08,1.04462752]
[1735097290454,0.28400215,704.22,703.08,1.04462752]
[1735097290656,0.2613352,704.21,703.08,1.04462752]
[1735097291061,0.2613352,704.21,703.07,1.04462752]
[1735097291260,0.28400215,704.22,703.07,1.04462752]
[1735097291860,0.26137028,704.21,703.07,1.04462752]
[1735097292065,0.28401022,704.2,703.07,1.04462752]
[1735097292261,0.28401022,704.2,702.9,1.04462752]
[1735097292962,0.28401022,704.2,702.75,0.28459622]
[1735097292963,0.28401022,704.2,702.89,1.04462752]
[1735097294366,0.28401022,704.2,702.88,1.04462752]
[1735097295361,0.28401022,704.2,702.75,0.28459622]
[1735097295362,0.28401022,704.2,702.86,1.04462752]
[1735097296068,0.26136891,704.19,702.86,1.04462752]
[1735097296264,0.26137684,704.18,702.85,1.04462752]
[1735097296970,0.54539513,704.18,702.85,1.04462752]
[1735097297169,0.26137684,704.17,702.85,1.04462752]
[1735097297771,0.26137684,704.17,702.98,1.04462752]
[1735097298369,0.28402635,704.16,702.98,1.04462752]
[1735097298569,0.26137684,704.15,702.98,1.04462752]
[1735097298770,0.28403442,704.14,702.97,1.04462752]
[1735097298969,0.26137684,704.13,702.97,1.04462752]
[1735097299169,0.28404249,704.12,702.97,1.04462752]
[1735097299368,0.26137684,704.11,702.97,1.04462752]
[1735097299770,0.28404249,704.12,702.97,1.04462752]
[1735097300170,1.05538195,704.56,702.86,1.04462752]
[1735097300370,0.28386913,704.55,702.86,1.04462752]
[1735097301373,0.28386913,704.55,702.87,1.04462752]
[1735097303468,0.28386913,704.55,702.86,1.04462752]
[1735097304473,0.28386913,704.55,702.88,1.32917111]
[1735097304673,0.28386913,704.55,702.89,0.28453954]
[1735097305070,0.26125074,704.54,702.89,0.28453954]
[1735097305468,0.26125074,704.54,702.93,1.04462752]
[1735097305874,0.26125074,704.54,702.94,0.2845193]
[1735097306067,0.28387719,704.53,702.94,0.2845193]
[1735097306267,0.26125074,704.52,702.94,0.2845193]
[1735097306473,0.54513272,704.51,703.01,1.04462752]
[1735097306773,0.26124747,704.5,703.02,0.28448692]
[1735097307869,0.26124747,704.5,703.05,1.04462752]
[1735097308171,0.26124747,704.5,703.06,0.28447074]
[1735097309274,0.26124067,704.49,703.06,0.28447074]
[1735097309471,0.26124067,704.48,703.06,0.28447074]
[1735097309668,0.26124067,704.47,703.17,1.04462752]
[1735097309870,0.26124067,704.46,703.17,1.04462752]
[1735097310066,0.26124067,704.45,703.17,1.04462752]
[1735097310272,0.26124067,704.44,703.17,1.04462752]
[1735097310472,0.26124067,704.43,703.17,1.04462752]
[1735097310670,0.26124067,704.42,703.17,1.04462752]
[1735097310872,0.26124067,704.41,703.17,1.04462752]
[1735097311071,0.26124067,704.4,703.16,1.04462752]
[1735097311375,0.26124067,704.39,703.16,1.04462752]
[1735097311575,0.26124067,704.38,703.16,1.04462752]
[1735097311877,0.26124067,704.37,703.14,1.04462752]
[1735097312075,0.2612501,704.36,703.14,1.04462752]
[1735097312270,0.2612501,704.35,703.14,1.04462752]
[1735097312470,0.2612501,704.34,703.14,1.04462752]
[1735097312676,0.2612501,704.33,703.14,1.04462752]
[1735097312875,0.261246,704.32,703.14,1.04462752]
[1735097313079,0.261246,704.31,703.11,1.04462752]
[1735097313372,0.261246,704.3,703.11,1.04462752]
[1735097313579,0.261246,704.29,703.11,1.04462752]
[1735097313773,0.261246,704.28,703.11,1.04462752]
[1735097313978,0.261246,704.27,703.11,1.04462752]
[1735097314273,0.28388525,704.51,703.11,1.04462752]
[1735097314476,0.26124453,704.5,703.11,1.04462752]
[1735097315977,0.26124453,704.5,703.09,1.04462752]
[1735097316874,0.26124453,704.5,703.06,0.28447074]
[1735097316875,0.26124453,704.5,703.08,1.04462752]
[1735097317579,0.26125728,704.49,703.08,1.04462752]
[1735097317779,0.26125728,704.48,703.08,1.04462752]
[1735097317981,0.26125728,704.48,703.06,0.28447074]
[1735097319479,0.28389331,704.49,703.06,0.28447074]
[1735097326684,0.26122793,704.48,703.06,0.28447074]
[1735097328784,0.26122551,704.47,703.06,0.28447074]
[1735097329088,0.26122551,704.46,703.06,0.28447074]
[1735097329291,0.26122551,704.45,703.06,0.28447074]
[1735097329487,0.26122789,704.44,703.06,0.28447074]
[1735097329687,0.26122789,704.43,703.06,0.28447074]
[1735097329883,0.26122789,704.42,703.06,0.28447074]
[1735097330086,0.28389331,704.49,703.06,0.28447074]
[1735097330392,0.26122836,704.48,703.1,1.04462752]
[1735097331294,0.26122836,704.48,702.49,1.24894034]
[1735097331295,0.26122836,704.48,703.15,1.04462752]
[1735097331596,0.26122836,704.48,703.16,0.28443028]
[1735097332296,0.26122836,704.48,703.19,1.04462752]